{"text_format":"3","workbook":"xlsx","n_sheets":5,"sheets":["general","SW-R","SW-L","Manually_operated","Obrázky"],"not_rendered":{"images":19,"defined_names":5,"comments":1},"read":"whole","date_system":"1900"}

{"sheet":"general","index":0,"n_rows":113,"n_cols":52,"rows_kept":113,"merged":[[1,21,2,27],[8,10,8,12],[8,14,8,15],[8,16,8,17],[9,16,10,16],[9,17,10,17],[11,7,18,7],[11,17,11,18],[12,17,12,18],[12,19,13,19],[14,2,18,2],[16,1,18,1],[17,19,18,19],[17,20,18,20],[17,21,18,21],[22,1,29,1],[22,20,23,20],[22,21,23,21],[23,19,25,19],[23,25,24,27],[26,19,27,19],[26,20,27,20],[28,8,29,13],[28,25,29,26],[29,7,30,7],[32,2,33,2],[32,4,33,4],[32,5,32,6],[35,24,36,25],[38,24,39,25],[43,4,43,5],[46,17,47,27],[49,17,50,27],[51,17,52,27],[57,12,57,15],[57,17,57,18],[57,19,57,20],[57,21,57,22],[57,23,57,24],[58,17,58,18],[58,19,58,20],[58,21,58,22],[58,23,58,24],[58,25,58,26],[59,17,60,20],[59,21,63,27],[62,13,62,15],[64,21,64,24],[64,26,64,27],[65,21,65,24],[65,26,65,27]]}
[{"$nulls":29},"č.jaz.",{"$f":"VLOOKUP(E5,AD3:AE11,2,FALSE)","v":2},null,"SVYHLEDAT","CZ","EN","DE","PL","FR","NL","EST","FIN","RU",{"$nulls":4},{"$f":"$AG$98","v":"manually"}]
[null,"Zvol jazyk:",{"$nulls":19},{"$f":"VLOOKUP(AG10,AG2:AR92,$AE$1+1,FALSE)","v":"HIGH LIFT SYSTEM (HL-2T)"},{"$nulls":7},"Jazyk","číslo",null,{"$f":"VLOOKUP(AH2,AH2:AR92,$AE$1,FALSE)","v":"Select a language:"},"Zvolit jazyk: ","Select a language:","Wählen Sie eine Sprache","Wybierz język","Sélectionner une langue","Kies een taal:","Valige keel","Valitse kieli:","Выберите язык:",{"$nulls":4},{"$f":"$AG$104","v":"electric motor on the right"}]
[null,"Select a language:",{"$nulls":5},{"$f":"VLOOKUP(AG3,AG2:AR92,$AE$1+1,FALSE)","v":"Opening width"},{"$nulls":3},"mm",{"$nulls":17},"CZ",1,null,{"$f":"VLOOKUP(AH3,AH3:AR92,$AE$1,FALSE)","v":"Opening width"},"Šířka otvoru","Opening width","Lichte Breite","Szerokość otworu","LARGEUR DE BAIE","Dagmaat breedte","Ava laius","Oviaukon leveys","Ширина проема",{"$nulls":4},{"$f":"$AG$103","v":"electric motor on the left"}]
[null,"Wählen Sie eine Sprache:",{"$nulls":21},{"$f":"VLOOKUP(AG14,AG2:AR92,$AE$1+1,FALSE)","v":"Max. W x H 5000x5500 max. 25 m2"},{"$nulls":5},"EN",2,null,{"$f":"VLOOKUP(AH4,AH4:AR93,$AE$1,FALSE)","v":"Opening height"},"Výška otvoru","Opening height","Lichte Höhe","Wysokość otworu","HAUTEUR DE BAIE","Dagmaat hoogte","Ava kõrgus","Oviaukon korkeus","Высота проема",{"$nulls":4},{"$f":"$AG$100","v":"hauling chain operated - left"}]
[null,"Wybierz język:",null,null,"EN",null,null,{"$f":"VLOOKUP(AG4,AG2:AR92,$AE$1+1,FALSE)","v":"Opening height"},{"$nulls":3},"mm",null,null,{"$f":"VLOOKUP(AH95,AH95:AR171,$AE$1,FALSE)","v":"Please, fill in the fields that are marked in color!"},{"$nulls":8},{"$f":"VLOOKUP(AG11,AG2:AR92,$AE$1+1,FALSE)","v":"springs above lintel"},{"$nulls":5},"DE",3,null,{"$f":"VLOOKUP(AH5,AH5:AR94,$AE$1,FALSE)","v":"INTERIOR VIEW"},"POHLED ZEVNITŘ","INTERIOR VIEW","INNENANSICHT","Widok od środka","VUE INTERIEURE","BINNENAANZICHT","seestvaade","SISÄLTÄPÄIN KUVATTUNA","Вид изнутри",{"$nulls":4},{"$f":"$AG$101","v":"hauling chain operated - right"}]
[null,"Sélectionner une langue:",{"$nulls":21},{"$f":"VLOOKUP(AG12,AG3:AR92,$AE$1+1,FALSE)","v":"for HL>=1200 (F>=1450) and HL<=3000 (F<=3250)"},{"$nulls":5},"PL",4,null,{"$f":"VLOOKUP(AH6,AH6:AR96,$AE$1,FALSE)","v":"SECTION A-A"},"ŘEZ A-A","SECTION A-A","DURCHSCHNITT A-A","Przekrój A-A","COUPE A-A","DOORSNEDE A-A","vaade A-A","LEIKKAUS A-A","Разрез А-А"]
[null,"Kies een taal:",{"$nulls":5},{"$f":"VLOOKUP(AH62,AH62:AR142,$AE$1,FALSE)","v":"Free room above lintel"},{"$nulls":3},"mm",{"$nulls":11},{"$f":"VLOOKUP(AG13,AG2:AR92,$AE$1+1,FALSE)","v":"SECTION THICKNESS 40/80mm"},{"$nulls":5},"FR",5,null,{"$f":"VLOOKUP(AH7,AH7:AR97,$AE$1,FALSE)","v":"SECTION B-B"},"ŘEZ B-B","SECTION B-B","DURCHSCHNITT B-B","Przekrój B-B","COUPE B-B","DOORSNEDE B-B","VAADE B-B","LEIKKAUS B-B","Разрез B-B"]
[null,"Valige keel",{"$nulls":27},"NL",6,null,{"$f":"VLOOKUP(AH8,AH8:AR98,$AE$1,FALSE)","v":"NOTE:"},"POZNÁMKA:","NOTE:","ACHTUNG:","Uwaga:","Remarque:","OPMERKING:","MÄRKUS","HUOMAUTUS:","ПРИМЕЧАНИЯ:"]
[null,"Valitse kieli:",{"$nulls":5},{"$f":"VLOOKUP(AG97,AG7:AR99,$AE$1+1,FALSE)","v":"Operated"},{"$nulls":21},"EST",7]
[null,"Выберите язык:",null,null,{"$f":"VLOOKUP(AG5,AG2:AR92,$AE$1+1,FALSE)","v":"INTERIOR VIEW"},{"$nulls":14},{"$f":"VLOOKUP(AG6,AG2:AR92,$AE$1+1,FALSE)","v":"SECTION A-A"},{"$nulls":9},"FIN",8,null,{"$f":"VLOOKUP(AH10,AH10:AR100,$AE$1,FALSE)","v":"HIGH LIFT SYSTEM (HL-2T)"},"VEDENÍ PRO VYSOKÝ PŘEKLAD (HL-2T)","HIGH LIFT SYSTEM (HL-2T)","HÖHERGEFÜHRTER BESCHLAG (HL-2T)","PROWADZENIE DLA WYSOKIEGO NADPROŻA (HL-2T)","LEVEE HAUTE (HL-2T)","HOOG PLAFONDSYSTEEM (HL-2T)","Kõrge tõste (HL-1T)","KORKEANOSTO (HL-1T)","ВЫСОКИЙ ПОДЪЕМ, С ПРЕДСОБРАННЫМ ВАЛОМ (HL<1200)"]
[{"$nulls":7},{"$f":"AG107","v":"Type of panel"},{"$nulls":21},"RU",9,null,{"$f":"VLOOKUP(AH11,AH11:AR101,$AE$1,FALSE)","v":"springs above lintel"},"PRUŽINY NAD PŘEKLADEM","springs above lintel","Federn oberhalb des Sturzes","SPRĘŻYNY NAD NADPROŻEM","RESSORTS AVANTS DEPORTES DU LINTEAU","verenpakket boven latei","Vedrud ava kohal","jouset ovipalkkin päällä","нижнее расположение вала"]
[{"$nulls":32},{"$f":"VLOOKUP(AH12,AH12:AR102,$AE$1,FALSE)","v":"for HL>=1200 (F>=1450) and HL<=3000 (F<=3250)"},"pro HL>=1200 (F>=1450) a HL<=3000 (F<=3250)","for HL>=1200 (F>=1450) and HL<=3000 (F<=3250)","für HL>=1200 (F>=1450) und HL<=3000 (F<=3250)","dla HL>=1200 (F>=1450) i HL<=3000 (F<=3250)","pour HL>=1200 (F>=1450) et HL<=3000 (F<=3250)","van HL>=1200 (F>=1450) tot HL<=3000 (F<=3250)","HL>=1200 (F>=1450) ja HL<=3000 (F<=3250)","pro HL>=1200 (F>=1450) ja HL<=3000 (F<=3250)","при высоте подъема > 1200 и <= 3000"]
[{"$nulls":32},{"$f":"VLOOKUP(AH13,AH13:AR103,$AE$1,FALSE)","v":"SECTION THICKNESS 40/80mm"},"PANEL 40/80mm","SECTION THICKNESS 40/80mm","Paneel 40/80mm","Panel 40/80mm","40/80mm PANNEAU","PANEEL 40/80mm","Paneel 40/80mm","Lamelli 40/80mm","ТОЛЩИНА СЕКЦИИ 40/80mm"]
[{"$nulls":32},{"$f":"VLOOKUP(AH14,AH14:AR104,$AE$1,FALSE)","v":"Max. W x H 5000x5500 max. 25 m2"},"Max. W x H 5000x5500 max. 25 m2","Max. W x H 5000x5500 max. 25 m2","Max. W x H 5000x5500 max. 25 m2","Max. W x H 5000x5500 max. 25 m2","Max. W x H 5000x5500 max. 25 m2","Max. W x H 5000x5500 max. 25 m2","Max. W x H 5000x5500 max. 25 m2","Max. W x H 5000x5500 max. 25 m2","макс. ШхВ (WxH)5000x5500 max. 25 m2"]
[]
[]
[{"$nulls":8},{"$f":" \"Z =  \" & N63","v":"Z =  NOT REQUIRED"}]
[{"$nulls":32},{"$f":"VLOOKUP(AH18,AH18:AR108,$AE$1,FALSE)","v":"mounting on brickwork"},"Montáž na cihlové zdivo","mounting on brickwork","Montage auf Mauerwerk und Ziegel","montaż do muru i cegły","montage sur béton","montage op beton","Paigaldus kiviseinale","asennus tiiliseinän","монтаж на бетон"]
[{"$nulls":8},{"$f":" \"(1) \" & $AG$35","v":"(1) NECESSARY FREE ROOM"},{"$nulls":23},{"$f":"VLOOKUP(AH19,AH19:AR109,$AE$1,FALSE)","v":"mounting on cellular concrete"},"Montáž na porobeton","mounting on cellular concrete","Montage auf Porenbeton oder Gasbeton","montaż do betonu porowatego","montage sur parpaing creux","montage op gasbeton","Paigaldus poorbetoonile","asennus betoniin","монтаж на газобетон"]
[{"$nulls":32},{"$f":"VLOOKUP(AH20,AH20:AR110,$AE$1,FALSE)","v":"mounting on insulated cladding"},"Montáž na opláštění","mounting on insulated cladding","Montage auf ISO-Trapezblechfassade","montaż do płaszcza","montage sur structure métallique  (a fournir par le charpentier)","montage op binnendooscontructie met damwandbeplating","Paigaldus soojustatud seinapaneelile","asennus eristettyyn seinäelementtiin","монтаж на металлокаркас"]
[{"$nulls":8},{"$f":"IF(K9=AU1,\"\",\"(2) \"&$AG$46)","v":"(2) necessary side room for electrical- or hauling chain operation"},{"$nulls":16},{"$f":"VLOOKUP($AG$18,$AG$2:$AR$92,$AE$1+1,FALSE)","v":"mounting on brickwork"}]
[{"$nulls":39},"Paigaldus soojustatud seinapaneelile","asennus eristettyyn seinäelementtiin","монтаж на металлокаркас"]
[{"$nulls":8},{"$f":"IF(OR(K9=AU2,K9=AU3,K9=\"\"),\"(3) \"&$AG$47,\"\")","v":"(3) Mounting surface for control panel. See product documentation for dimensions"},{"$nulls":23},{"$f":"VLOOKUP(AH23,AH23:AR112,$AE$1,FALSE)","v":"WORK TO BE CARRIED OUT BY CUSTOMER, UNLESS IN ADVANCE OTHERWISE IS AGREED IN WRITING."},"PRÁCE, KTERÉ MUSÍ BÝT PROVEDENY ZÁKAZNÍKEM PŘED MONTÁŽÍ, POKUD NEBYLO DOHODNUTO JINAK","WORK TO BE CARRIED OUT BY CUSTOMER, UNLESS IN ADVANCE OTHERWISE IS AGREED IN WRITING.","VORBEREITUNGEN UND ARBEITEN DIE VOM AUFTRAGGEBER ZU ERBRINGEN SIND, AUßER BEI SCHRIFTLICHER VEREINBARUNG IM VORAUS:","PRACE, KTÓRE MUSZĄ ZOSTAĆ WYKONANE PRZEZ KLIENTA PRZED WYKONANIEM MONTAŻU, O ILE NIE UZGODNIONO INACZEJ.","APPROVISIONNEMENT & TRAVAUX INCOMBANT AU MAITRE D'OUVRAGE  (sauf accord contraire)","VOORZIENINGEN EN WERKZAAMHEDEN DOOR OPDRACHTGEVER TE VERZORGEN, TENZIJ VOORAF SCHRIFTELIJK ANDERS IS OVEREENGEKOMEN ","Kliendi poolt tehtavad ettevalmistustööd v.a juhul kui pole kirjalikult teistmoodi kokku lepitud","ASIAKKAAN TEHTÄVÄT TYÖT, ELLEI ETUKÄTEEN KIRJALLISESTI MUUTOIN SOVITTU ","МАТЕРИАЛЫ И ПРОВЕДЕНИЕ РАБОТ ОБЕСПЕЧИВАЮТСЯ КЛИЕНТОМ,ЕСЛИ ИНОЕ НЕ ОГОВОРЕНО ЗАРАНЕЕ В ПИСЬМЕННОЙ ФОРМЕ"]
[{"$nulls":8},{"$f":"IF(OR(K9=AU2,K9=AU3,K9=\"\"),\"      \"&$AG$48,\"\")","v":"      center line ca 1.400 -1.500 mm above floor"},{"$nulls":16},{"$f":"VLOOKUP(AG19,AG2:AR92,$AE$1+1,FALSE)","v":"mounting on cellular concrete"},{"$nulls":6},"Constructional :","Konstrukční:","Constructional :","Bauseits:","Konstrukcyjne:","Structure: ","Bouwkundig:","Ehituslikud:","\nRakenteellinen:","Конструктивно:"]
[{"$nulls":32},"Supply and fix mounting frame and mounting surfaces for the rails and the spring packet in case of aerated concrete or sandwichpanels etc.","Příprava montážních ploch pro vedení vrat a pro pružiny.","Supply and fix mounting frame and mounting surfaces for the rails and the spring packet in case of aerated concrete or sandwichpanels etc.","Ein stählerner Montagerahmen zur Befestigung der vertikalen Laufschienen und des Federpakets bei nicht tragfähigen Flächen wie z.B. Porenbeton, Gasbeton, Isolationspanelen u.s.w..","Przygotowanie powierzchni montażowych dla prowadzenia bramy oraz dla sprężyn.","Préparation de la structure de montage des rails de guidage et des ressorts pour une pose sur panneaux isolants","Een stalen montageframe voor de bevestiging van de verticale looprails en het verenpakket bij niet dragende montagevlakken, zoals gasbeton, isolatiepanelen, sandwichpanelen enz.","Avaettevalmistusraami tarnimine ja paigaldus siinide ja vedrude kinnituseks","Toimittaa ja asentaa asennuskehyksen ja asennuspinnat kiskoille ja jousipaketille tapauksessa jossa kevytbetooni tai sandwich-paneeli jne.","Стальная монтажная рама для установки вертикальных направляющих и пружин в случае не несущих монтажных поверхностей, таких как: газобетон, изоляционные панели, сэндвич-панели и т.д."]
[{"$nulls":8},{"$f":"IF(OR(K9=AU2,K9=AU2,K9=AU3,K9=\"\"),\"(4) \"&$AG$49,\"\")","v":"(4) Electric outlet parameters can be found in the product documentation."},{"$nulls":23},"Mounting possibilities for the horizontal rails up to 1 meter above the rails must be provided.","Montáž vodorovného vedení může být max. 1 metr od pevné konstrukce.","Mounting possibilities for the horizontal rails up to 1 meter above the rails must be provided.","Befestigungsmöglichkeit für die Zwischen- und Endaufhängung der horizontalen Laufschienen bis zu max. 1 m über diesen Laufschienen.","Montaż prowadzenia poziomego można wykonać w oddaleniu maks. 1 metra od konstrukcji stałej.","Lorsque les possibilités de montage des rails horizontaux dépassent ","Bevestigingsmogelijkheid voor de tussen- en eindophanging van de horizontale looprails tot max. 1m boven deze looprails.","Paigaldusruum ülalpool siini max. 1m","Asennus mahdollisuudet vaakakiskoille enintään 1 metrin korkeudella kiskoista pitää olla mahdollista.","Способы крепления для горизонтальных направляющих максимум до 1м над данными направляющими."]
[{"$nulls":32},"Necessary mounting surface and free room as shown.","Nezbytné montážní plochy a volný prostor dle nákresu.","Necessary mounting surface and free room as shown.","Benötigte Montageflächen und Freiräume gemäß Zeichnung.","Niezbędne powierzchnie montażowe oraz wolna przestrzeń wg rysunku.","Adapter la structure et l' espace disponible selon nos plans de réservations ci-contre","Benodigde montagevlakken en vrije ruimtes, volgens tekening.","Piisav paigaldusruum vastavalt lisatud joonisele","Tarvittava kiinnityspinta ja vapaa tilaa kuvan mukaisesti.","Необходимые монтажные поверхности и свободное пространство в соответствии с чертежом"]
[{"$nulls":32},"Electrical supply required to be :","Elekrická příprava (pro elektricky ovládaná sekční vrata): ","Electrical supply required to be :","Elektrisch (bei elektrisch bedienten Toren):","Przygotowanie elektryczne (dla elektrycznie sterowanej bramy segmentowej) :","Alimentation electrique  (pour porte motorisée) :","Elektrisch: (bij elektrisch bediende deuren)","Elektriliselt avatavate uste jaoks","Sähkönsyöttö tarvittu:","Электрика (для ворот с электрическим управлением):"]
[{"$nulls":25},{"$f":"VLOOKUP(AG20,AG2:AR92,$AE$1+1,FALSE)","v":"mounting on insulated cladding"},{"$nulls":6},"400V/230V 3 phase neutral and earth terminating, provided by euro plug socket.","Zásuvka CEE 16 A, 5P, 400 V = zásuvka s nulovým a zemnícím vodičem","400V/230V 3 phase neutral and earth terminating, provided by euro plug socket.","Stromzufuhr 400V/230V mittels Eurosteckdose, 3 Phasen+0+PE max.1 meter vom Schaltkasten.","Gniazdo CEE 16 A, 5P, 400 V = gniazdo z przewodnikiem zerowym i uziemiającym","400V triphase T+N avec prise de raccordement CEE 16 A","Voeding  400V/230V door middel van eurostopcontact, 3 fase+0+PE max. ","Toite vedu ajamini - 400V/230V, 3 faasi","400V / 230V 3 vaihe+neutraali ja maadoitus tarjotuna Euro pistorasiasta.","Питание 400V/230V посредством заземленной евророзетки, 3 фазы+0+РЕ "]
[{"$nulls":32},"Provide suitable mounting surface for control panel, dimensions 250 x 400 mm","Zajistit vhodnou montážní plochu pro řídící jednotku motoru 250 x 400 mm","Provide suitable mounting surface for control panel, dimensions 250 x 400 mm","Montagefläche für Schaltkasten, Abmessungen 250 x 400 mm","Zapewnić odpowiednią powierzchnię montażową dla jednostki sterującej silnika 250x400","Assurer une surface de montage adéquate pour le coffret de commande du moteur L.250 x H.400 mm","Montagevlak t.b.v. schakelkast, afmetingen 250 x 400 mm","Kontrolleri jaoks piisava paigaldusruumi tagamine 250x400 mm","Tarjoa sopivan kiinnityspinnan  ohjauspaneelia varten ,mitat 250 x 400 mm","необходимо обеспечить монтажную поверхность для панели управления, размеры 250х400 мм"]
[]
[]
[{"$nulls":32},"NECESSARY MOUNTING SURFACE","NEZBYTNÁ MONTÁŽNÍ PLOCHA","NECESSARY MOUNTING SURFACE","BENÖTIGTE MONTAGEFLÄCHEN","NIEZBĘDNA POWIERZCHNIA MONTAŻOWA","SURFACE NECESSAIRE DE MONTAGE","BENODIGDE MONTAGEVLAKKEN","Vajalik paigaldusruum","TARVITTAVA KIINNITYSPINTA","необходимая монтажная поверхность"]
[{"$nulls":32},"EXTRA PLANES AT WEAK SURFACES","DODATEČNÉ MONTÁŽNÍ PLOCHY PRO KONZOLY","EXTRA PLANES AT WEAK SURFACES","MONTAGEFLÄCHE FÜR DEN MOTOR","Dodatkowych obszarach montażu konsoli","FACILITÉ DE MONTAGE ADDITIONNEL POUR CONSOLE","EXTRA VLAKKEN BIJ ZWAKKE ONDERGROND","Lisaplaadid nõrgale pinnale","LISÄ ASENNUSTILA ","металлокаркас из стальной профильной трубы"]
[{"$nulls":11},{"$f":"VLOOKUP(AG39,AG2:AR92,$AE$1+1,FALSE)","v":"fall of the floor"},{"$nulls":20},"NECESSARY FREE ROOM","NEZBYTNÝ VOLNÝ PROSTOR","NECESSARY FREE ROOM","BENÖTIGTER FREIRAUM","niezbędne miejsce","ESPACE LIBRE NECESSAIRE","BENODIGDE VRIJE RUIMTE","Vajalik vaba ruum ","TARVITTAVA VAPAA TILA","необходимое свободное пространство"]
[{"$nulls":32},"EXTRA FREE ROOM FOR MOTOR/CHAIN","VOLNÝ PROSTOR PRO MOTOR/ŘETĚZ.PŘEVOD","EXTRA FREE ROOM FOR MOTOR/CHAIN","EXTRA FREIRAUM FÜR MOTOR/KETTE","Wolnego miejsca na silnik, napęd łańcuchowy","ESPACE LIBRE POUR MOTEUR / CHAINE DE LEVAGE.","EXTRA VRIJE RUIMTE BIJ MOTOR/KETTING","Lisa vaba ruum mootorile/ketile","LISÄTILA MOOTORIA/KETJUA VARTEN","дополнительное свободное пространство для двигателя/подъемной цепи"]
[]
[{"$nulls":4},{"$f":"VLOOKUP(AG7,AG2:AR92,$AE$1+1,FALSE)","v":"SECTION B-B"}]
[{"$nulls":32},"fall of the floor","sklon podlahy","fall of the floor","Bodenneigung","nachylenie podłogi","réservations seuil béton","vloer met waterkering","pinna langus","kaltevuus","пол с водоотводом"]
[{"$nulls":32},"outside","směrem ven","outside","nach aussen","w kierunku na zewnątrz","à l'extérieur","buitenzijde","väljaspool","ulkopuoli"]
[{"$nulls":32},"fall 3%","sklon 3%","fall 3%","Gefälle 3%","nachylenie 3%","PENTE 3%","afschot 3%","langus 3%","kaltevuus 3%","наклон 3%"]
[{"$nulls":32},"internal level","směrem ven","internal level","Wasserschenkel","w kierunku na zewnątrz","réservations seuil béton","niveau binnen","Sisemine tasand","sisäinen taso"]
[{"$nulls":17},{"$f":"VLOOKUP(AG33,AG2:AR92,$AE$1+1,FALSE)","v":"NECESSARY MOUNTING SURFACE"},{"$nulls":6},{"$f":"VLOOKUP(AG35,AG4:AR93,$AE$1+1,FALSE)","v":"NECESSARY FREE ROOM"},{"$nulls":7},"floor with raised","sklon podlahy","floor with raised","Boden mit","nachylenie podłogi","pente du plancher","vloer met  ","põrand koos tõstetud sisetasandiga","lattia nostetulla","пол с наклоном 3%"]
[]
[{"$nulls":17},{"$f":"VLOOKUP(AG34,AG4:AR93,$AE$1+1,FALSE)","v":"EXTRA PLANES AT WEAK SURFACES"},{"$nulls":6},{"$f":"VLOOKUP(AG36,AG4:AR93,$AE$1+1,FALSE)","v":"EXTRA FREE ROOM FOR MOTOR/CHAIN"}]
[{"$nulls":32},{"$f":"VLOOKUP(AH46,AH46:AR141,$AE$1,FALSE)","v":"necessary side room for electrical- or hauling chain operation"},"nezbytný boční prostor pro motor nebo řetězový pohon","necessary side room for electrical- or hauling chain operation","Benötigter Freiraum bei Elektro- oder Haspelkettenbedienung ","niezbędna przestrzeń boczna dla silnika lub napędu łańcuchowego","écoinçon minimum requis pour le moteur ou treuil a chaîne","benodigde vrije ruimte voor elektrische- of ketting bediening","vajalik küljeruum mootori või tali puhul","tarvittava tila mootori- tai ketjunostolle ","необходимое боковое пространство для электропривода или цепного редуктора"]
[null,{"$f":"VLOOKUP(AG8,AG2:AR92,$AE$1+1,FALSE)","v":"NOTE:"},{"$nulls":15},{"$f":"VLOOKUP(AG23,AG2:AR92,$AE$1+1,FALSE)","v":"WORK TO BE CARRIED OUT BY CUSTOMER, UNLESS IN ADVANCE OTHERWISE IS AGREED IN WRITING."},{"$nulls":14},{"$f":"VLOOKUP(AH47,AH47:AR142,$AE$1,FALSE)","v":"Mounting surface for control panel. See product documentation for dimensions"},"montážní plocha pro řídící jednotku. Rozměry najdete v dokumentaci ŘJ.","Mounting surface for control panel. See product documentation for dimensions","Montagefläche für Antriebsteuerung. Siehe Produktdokumentation für Abmessungen","Powierzchnia montażowa dla jednostki sterującej. Wymiary można znaleźć w dokumentacji produktu","Surface de montage pour le Coffret de commande","Montagevlak t.b.v. Zie productdocumentatie voor afmetingen","Kontrolli paigaldusala. Vaata toote dokumentatsiooni mõõtmete kohta","Kiinnityspinta ohjauspaneelia varten. Katso mitat tuoteasiakirjoista","монтажная поверхность для блока управления. Размеры см. в документации на изделие"]
[{"$nulls":32},{"$f":"VLOOKUP(AH48,AH48:AR140,$AE$1,FALSE)","v":"center line ca 1.400 -1.500 mm above floor"},"osa cca 1.400 až 1.500 mm od podlahy","center line ca 1.400 -1.500 mm above floor","Achse ca. 1.400 bis 1.500 mm vom Boden","oś ok. 1.400 do 1.500 mm od podłogi","axe d'env. 1 400 a 1 500 mm a compter ","hartlijn ca. 1.400 - 1.500 boven de vloer","Keskjoon ca 1400-1500 mm põrandast","keskiviiva ca 1,400 -1,500 mm: n korkeudella lattiasta","осевая линия примерно 1.400-1.500 мм над уровнем пола"]
[null,{"$f":"VLOOKUP(AG52,AG2:AR92,$AE$1+1,FALSE)","v":"The rear face of the lintel and the door jambs, as well as the surface for the spring packet must be levelled and in line."},{"$nulls":15},{"$f":"VLOOKUP(AG24,AG2:AR92,$AE$1+1,FALSE)","v":"Constructional :"},{"$nulls":14},{"$f":"VLOOKUP(AH49,AH49:AR144,$AE$1,FALSE)","v":"Electric outlet parameters can be found in the product documentation."},"Zásuvka, parametry najdete v dokumentaci produktu","Electric outlet parameters can be found in the product documentation.","Die Parameter der Steckdosen sind in der Produktdokumentation zu finden.","Parametry gniazdka elektrycznego można znaleźć w dokumentacji produktu.","Les paramètres des prises électriques sont indiqués dans la documentation du produit.","De parameters van het stopcontact zijn te vinden in de productdocumentatie.","Elektripistiku parameetrid leiate toote dokumentatsioonist.","Pistorasian parametrit löytyvät tuoteasiakirjoista.","Параметры электрической розетки приведены в документации на изделие.","Параметры электрической розетки приведены в документации на изделие."]
[null,{"$f":"VLOOKUP(AG53,AG2:AR92,$AE$1+1,FALSE)","v":"Furthermore the opening must be plumb and square."},{"$nulls":15},{"$f":"VLOOKUP(AG25,AG2:AR92,$AE$1+1,FALSE)","v":"Supply and fix mounting frame and mounting surfaces for the rails and the spring packet in case of aerated concrete or sandwichpanels etc."}]
[null,{"$f":"VLOOKUP(AG54,AG2:AR92,$AE$1+1,FALSE)","v":"Floor area must be flat and horizontal."}]
[{"$nulls":17},{"$f":"VLOOKUP(AG26,AG3:AR92,$AE$1+1,FALSE)","v":"Mounting possibilities for the horizontal rails up to 1 meter above the rails must be provided."},{"$nulls":14},"The rear face of the lintel and the door jambs, as well as the surface for the spring packet must be levelled and in line.","Stěna nad překladem, stěny vedle otvoru a plochy pro montáž konzol musí být rovné a v jedné rovině.","The rear face of the lintel and the door jambs, as well as the surface for the spring packet must be levelled and in line.","Die hinteren Seiten der Sturze und Pfeiler, sowie die Montagefläche für das Federpaket müssen eben und auf einer Linie liegen.","Ściany tłumaczenia, obok ściany otworu oraz wszystkie obszary i zbiórki musi być kolor.","La surface d'appui pour la pose de la porte sectionnelle doit etre dans le meme plan et verticale.","De achterkanten van de penanten, de latei en de montagevlakken van het verenpakket dienen vlak en in één lijn te liggen.","Kõik paigalduspinnad peavad olema ühes tasapinnas ja loodis","Ylä ja sivukarmien sekä jousipaketin asennuspinnan pitää olla tasaisia ja samassa linjassa","Монтажная поверхность должна быть ровной и распологаться в одной вертикальной плоскости"]
[null,{"$f":"VLOOKUP(AG57,AG2:AR92,$AE$1+1,FALSE)","v":"UNITS in mm"},{"$nulls":30},"Furthermore the opening must be plumb and square.","Otvor musí být svislý a obdélníkový.","Furthermore the opening must be plumb and square.","Im übrigen müssen die lichten Masse eben und rechtwinklig sein.","Otwór musi być pionowy i prostokątny.","L'ouverture de la baie doit etre parfaitement de niveau et d'equerre.","Tevens moet de dagmaat vlak en haaks zijn.","Ava peab olema täpne ja nelinurkne","Lisäksi oviaukon pitää olla pysty- ja vaakasuora sekä nelikulmainen.","Проем также должен быть ровным и прямоугольным."]
[null,"W =",{"$f":"VLOOKUP(AG58,AG2:AR92,$AE$1+1,FALSE)","v":"Opening width"},null,null,{"$f":"IF(K3=\"\",\"W \",\"W = \" &K3)","v":"W "},{"$f":"IF(K9=\"\",AG72,AG97&\": \" & \"  \" &K9)","v":"Electrical or hauling chain operated"},{"$nulls":5},{"$f":"VLOOKUP(AG77,AG6:AR95,$AE$1+1,FALSE)","v":"Free room above lintel"},{"$nulls":4},{"$f":"VLOOKUP(AG27,AG2:AR92,$AE$1+1,FALSE)","v":"Necessary mounting surface and free room as shown."},{"$nulls":14},"Floor area must be flat and horizontal.","Podlaha musí být rovná a vodorovná.","Floor area must be flat and horizontal.","Der Fussboden muss glatt und waagerecht sein.","Podłoga musi być równa i pozioma.","Le sol doit etre parfaitement horizontal et plan.","De afgewerkte vloer dient vlak en waterpas te liggen.","Põrandapind peab olema sile ja horisontaalne","Lattian pitää olla tasainen ja vaakasuora.","Обработанный пол должен быть ровным и без склонов."]
[null,"H =",{"$f":"VLOOKUP(AG59,AG3:AR92,$AE$1+1,FALSE)","v":"Opening height"},null,null,{"$f":"IF(K5=\"\",\"H \",\"H = \" &K5)","v":"H "},{"$f":"IF(K7=\"\",\"L/R\",\"L\")","v":"L/R"},{"$f":"IF(K7=\"\",AG110,VLOOKUP(AG64,AG5:AR96,$AE$1+1,FALSE))","v":"Motor side "},{"$nulls":3},{"$f":"IF(K7=\"\",\"min. 430\",IF(K9=AG98,\"min. \" &250,IF(K9=AG100,\"min. 330\",IF(K9=AG103,\"min. 430\",\"min.  \" &250))))","v":"min. 430"},"F","min. 1450; max 3250 ",null,{"$f":"IF(K7=\"\",\"\",K7)","v":""},null,{"$f":"VLOOKUP(AG28,AG2:AR92,$AE$1+1,FALSE)","v":"Electrical supply required to be :"}]
[null,"HL = ",{"$f":"VLOOKUP(AG60,AG4:AR93,$AE$1+1,FALSE)","v":"High lift"},null,null,{"$f":"IF(K5=\"\",\"HL \",\"HL = \" &P56)","v":"HL "},{"$f":"IF(K7=\"\",\"L/R\",\"R\")","v":"L/R"},{"$f":"IF(K7=\"\",AG111,VLOOKUP(AG65,AG6:AR97,$AE$1+1,FALSE))","v":"Other side"},{"$nulls":3},{"$f":"IF(K9=\"\",\"min. 250\",IF(K9=AG98,\"min. \" &250,IF(K9=AG101,\"min. 360\",IF(K9=AG104,\"min. 430\",\"min. \" &250))))","v":"min. 250"},"HL",null,"F - 250",{"$f":"IF(OR(K3=\"\",K5=\"\",P55=\"\"),\"\",P55-250)","v":""}]
[null,"E = ",{"$f":"VLOOKUP(AG61,AG4:AR93,$AE$1+1,FALSE)","v":"Interior height"},null,null,{"$f":"IF(K5=\"\",\"E\",\"E = \" &P57)","v":"E"},{"$f":"IF(G55=\"\",\"\",\"D\")","v":"D"},{"$f":"VLOOKUP(AG66,AG7:AR98,$AE$1+1,FALSE)","v":"Back room"},null,null,{"$f":"IF(G55=\"\",\"\",\"H - HL + 950\")","v":"H - HL + 950"},{"$f":"IF(OR(K5=\"\",K7=\"\"),\"\",K5-P56+950)","v":""},"E",null,"H + F",{"$f":"IF(OR(K3=\"\",K5=\"\",P55=\"\"),\"\",K5+P55)","v":""},{"$nulls":16},"UNITS in mm","Rozměry jsou v mm","UNITS in mm","MASSE in mm","Wymiary podane w mm","MESURES en mm","MATEN in mm","Mõõdud mm","YKSIKKÖ mm","размеры в мм:"]
[null,"F = ",{"$f":"VLOOKUP(AG62,AG5:AR94,$AE$1+1,FALSE)","v":"Free room above lintel"},null,null,{"$f":"IF(K7=\"\",\"F \",\"F = \" &K7)","v":"F "},{"$f":"IF(OR(L57=\"\",L57<=3000),VLOOKUP(AG75,AG4:AR95,$AE$1+1,FALSE),\"\")","v":"Hanging point if"},null,{"$f":"IF(G58=\"\",\"\",\"D<=3000\")","v":"D<=3000"},{"$nulls":3},{"$f":"VLOOKUP(AG78,AG6:AR95,$AE$1+1,FALSE)","v":"Height of shaft above lintel"},{"$nulls":4},{"$f":"VLOOKUP(AG81,AG2:AR92,$AE$1+1,FALSE)","v":"Designed by:"},null,{"$f":"VLOOKUP(AG82,AG2:AR92,$AE$1+1,FALSE)","v":"Checked by"},null,{"$f":"VLOOKUP(AG83,AG2:AR92,$AE$1+1,FALSE)","v":"Approved by - date:"},null,{"$f":"VLOOKUP(AG84,AG2:AR92,$AE$1+1,FALSE)","v":"File name:"},null,{"$f":"VLOOKUP(AG85,AG2:AR92,$AE$1+1,FALSE)","v":"Date:"},{"$f":"VLOOKUP(AG86,AG2:AR92,$AE$1+1,FALSE)","v":"Scale:"},{"$f":"VLOOKUP(AG87,AG2:AR92,$AE$1+1,FALSE)","v":"Sheet:"},{"$nulls":4},"Opening width","Šířka otvoru","Opening width","Lichte Breite","Szerokość otworu","LARGEUR DE BAIE","Dagmaat breedte","Ava laius","Oviaukon leveys","ширина проема"]
[null,"J = ",{"$f":"VLOOKUP(AG63,AG6:AR95,$AE$1+1,FALSE)","v":"Height of frame above opening"},null,null,{"$f":"IF(OR(K5=\"\",K7=\"\"),\"J\",\"J = \"&P62)","v":"J"},{"$f":"IF(G58=\"\",\"\",\"X\")","v":"X"},{"$f":"IF(G58=\"\",\"\",VLOOKUP(AG76,AG4:AR95,$AE$1+1,FALSE))","v":"Hanging point"},null,null,{"$f":"IF(G58=\"\",\"\",\"H - HL\")","v":"H - HL"},{"$f":"IF(G58=\"\",\"\",IF(OR(K5=\"\",K7=\"\",P55=\"\"),\"\",ROUNDDOWN(K5-P56,0)))","v":""},"A",null,null,670,null,"K. Luňák",null,"R. Kříž",null,"2025-05-28",null,"STP",null,"2025-05-28",null,"A3",{"$nulls":4},"Opening height","Výška otvoru","Opening height","Lichte Höhe","Wysokość otworu","HAUTEUR DE BAIE","Dagmaat hoogte","Ava kõrgus","Oviaukon korkeus","высота проема"]
[null,"L = ",{"$f":"VLOOKUP(AG64,AG7:AR96,$AE$1+1,FALSE)","v":"Free side room left"},null,null,{"$f":"IF(OR(K3=\"\",K7=\"\"),\"L\",IF(Obrázky!Z16=\"\",\"L = 250\",IF(OR(K3=\"\",K7=\"\"),\"L\",Obrázky!$Z$16)))","v":"L"},{"$f":"IF(L57>3000,VLOOKUP(AG75,AG4:AR95,$AE$1+1,FALSE),\"\")","v":"Hanging point if"},null,{"$f":"IF(G60=\"\",\"\",\"D>3000\")","v":"D>3000"},{"$nulls":8},"http://door-documents.com/en/indy-installation-drawing-hl2-t",{"$nulls":3},{"$f":"VLOOKUP(AG88,AG2:AR92,$AE$1+1,FALSE)","v":"INSTALLATION DRAWING PRE-ASSEMBLED HIGH LIFT SYSTEM (HL-2T) HL >= 1200"},{"$nulls":10},"High lift","High lift","High lift","Höhe der Führung","Wyciąg wysoki","LEEVE HAUTE","High lift","Kõrge tõste","korkeanosto","Высокий подъем"]
[null,"R = ",{"$f":"VLOOKUP(AG65,AG8:AR97,$AE$1+1,FALSE)","v":"Free side room right"},null,null,{"$f":"IF(OR(K3=\"\",K7=\"\"),\"R\",IF(Obrázky!Z17=\"\",\"R = 250\",IF(OR(K3=\"\",K7=\"\"),\"R\",Obrázky!Z17)))","v":"R"},{"$f":"IF(G60=\"\",\"\",\"X\")","v":"X"},{"$f":"IF(G60=\"\",\"\",VLOOKUP(AG67,AG4:AR95,$AE$1+1,FALSE))","v":"1 st hanging point"},null,null,{"$f":"IF(G60=\"\",\"\",\"H - HL\")","v":"H - HL"},{"$f":"IF(G60=\"\",\"\",IF(OR(K5=\"\",K7=\"\",P55=\"\"),\"\",ROUNDDOWN(K5-P56,0)))","v":""},{"$nulls":20},"Interior height","Výška stropu","Interior height","Höhe Innenraum","Wysokość stropu","HAUTEUR SOUS PLAFOND","Hoogte binnenruimte","Sisemine kõrgus","sisäkorkeus","высота внутри помещения до перекрытий"]
[null,"D = ",{"$f":"VLOOKUP(AG66,AG10:AR98,$AE$1+1,FALSE)","v":"Back room"},null,null,{"$f":"IF(AND(K5=\"\",K7=\"\"),\"D\",\"D = \" & L57)","v":"D"},{"$f":"IF(G60=\"\",\"\",\"Y\")","v":"Y"},{"$f":"IF(G60=\"\",\"\",VLOOKUP(AG68,AG4:AR95,$AE$1+1,FALSE))","v":"2 nd hanging point"},null,null,{"$f":"IF(G60=\"\",\"\",\"1/2 X\")","v":"1/2 X"},{"$f":"IF(G60=\"\",\"\",IF(OR(K5=\"\",K7=\"\",P55=\"\"),\"\",ROUNDDOWN(L61/2,0)))","v":""},"J",null,"HL + 220",{"$f":"IF(OR(K3=\"\",K5=\"\",P55=\"\"),\"\",P56+220)","v":""},{"$nulls":16},"Free room above lintel","Volný prostor nad překladem","Free room above lintel","Freiraum über Sturz","Wolna przestrzeń nad nadprożem","RETOMBEE DE LINTEAU DISPONIBLE","Vrije ruimte boven latei","Vaba ruum laeni","vapaa ylätila","свободное пространство над проемом"]
[null,"X =",{"$f":"VLOOKUP(AG67,AG11:AR100,$AE$1+1,FALSE)","v":"1 st hanging point"},null,null,{"$f":"IF(OR(K5=\"\",K7=\"\"),\"X\",IF(Obrázky!Z18<=3000,\"X = \"&L59,\"X = \"&L61))","v":"X"},{"$nulls":6},"Z",{"$f":"IF(OR(Obrázky!Z22>9000,K11=AG109),350,AG93)","v":"NOT REQUIRED"},{"$nulls":18},"Height of frame above opening","Výška montážní plochy nad otvorem","Height of frame above opening","Höhe über Montagefläche Loch","Wysokość powyżej otworu montażowego powierzchni","HAUTEUR AU-DESSUS DU TROU DE SURFACE DE MONTAGE","Hoogte frame boven latei","Raami kõrgus ava kohal","Rungon korkeus oviaukon yläpuolella.","высота конструкции ворот над проемом"]
[null,"Y = ",{"$f":"VLOOKUP(AG68,AG12:AR101,$AE$1+1,FALSE)","v":"2 nd hanging point"},null,null,{"$f":"IF(OR(K5=\"\",K7=\"\"),\"Y\",IF(Obrázky!Z18<=3000,\"Y = 0\",\"Y = \"&L62))","v":"Y"},{"$nulls":26},"Free side room left","Volný prostor vlevo","Free side room left","Freiraum LINKS","Wolna przestrzeń W LEWO","ECOINCON GAUCHE","Vrije zijruimte links","Vaba küljeruum vasakul","vapaa tila vasemalla","свободное боковое пространство СЛЕВА"]
[{"$nulls":21},{"$f":"AG10","v":"HIGH LIFT SYSTEM (HL-2T)"},{"$nulls":3},{"$f":"VLOOKUP(AG91,AG2:AR92,$AE$1+1,FALSE)","v":"Code:"},{"$f":"VLOOKUP(AG92,AG2:AR92,$AE$1+1,FALSE)","v":"Version:"},{"$nulls":5},"Free side room right","Volný prostor vravo","Free side room right","Freiraum RECHTS","Wolna przestrzeń W PRAWO","ECOINCON DROITE","Vrije zijruimte rechts","Vaba küljeruum paremal","vapaa tila oikealla","свободное боковое пространство СПРАВА"]
[{"$nulls":21},{"$f":"AG11","v":"springs above lintel"},{"$nulls":3},"C40-2C",2522,{"$nulls":5},"Back room","Hloubka vedení","Back room","Einbautiefe","Głębokość prowadzenia poziomego","REFOULEMENT HORS-TOUT","Inbouwdiepte","Sügavus","tila takana","монтажная глубина"]
[{"$nulls":32},"1 st hanging point","Kotvící bod č. 1","1 st hanging point","1. Aufhängepunkt","Punkt mocowania nr 1","POINT D'ANCRAGE 1 SUSPENTE","1e ophangpunt","1.kinnituskoht","1. ripustuspiste","1 точка крепления горизонтальных направляющих"]
[{"$nulls":32},"2 nd hanging point","Kotvící bod č. 2","2 nd hanging point","2. Aufhängepunkt","Punkt mocowania nr 2","POINT D'ANCRAGE 2 SUSPENTE","2e ophangpunt","2.kinnituskoht","2. ripustuspiste","2 точка крепления горизонтальных направляющих"]
[{"$nulls":32},"Free room above mounting surface","Volný prostor nad překladem","Free room above mounting surface","Freiplatz auf der Mountageplatz","Wolny przestrzeń nad nadproźem","Espace au-dessus de la surface de montage","Ruimte boven montagevlak","Vaba ruum ülalpool paigalduspinda","Vapaa tila asennuspisten kohdalla","технологический зазор"]
[{"$nulls":32},"Manually operated","Ruční ovládání","Manually operated","Handbedienung","Sterowanie ręczne","PORTE MANUELLE","Handbediend","Käsitsi avatav","Käsikäyttöinen","ручное управление"]
[{"$nulls":32},"Both sided","Obě strany","Both sided","Beide Seiten","Obie strony","LES 2 COTES","Beide zijden","Mõlemal pool","\nKaksipuoleinen","обе стороны"]
[{"$nulls":32},"Electrical or hauling chain operated","Ovládání elektricky nebo řetězovým převodem","Electrical or hauling chain operated","Elektrisch- oder Haspelkettenbedient","Sterowanie elektr. lub za pom. przekł. łańc.","PORTE MOTORISEE OU AVEC TREUIL A CHAINE","Elektrisch- of handketting bediend","Elektriliselt või taliga avatav","Sähkö- tai ketjukäytöinen","электрическое управление или с помощью цепи"]
[{"$nulls":32},"Motor or chain side","Motor nebo řetěz. př.","Motor or chain side","Motor-oder Kettenseite","Silnik lub przekł. łańc.","ECOINCON LIBRE A COTE DE MOTEUR","Motor- of kettingzijde","Mootori või tali pool","Mootorin tai ketjun puolinen","сторона цепи или мотора"]
[{"$nulls":32},"Back room","Hloubka vedení","Back room","Einbautiefe","Głębokość prowadzenia","REFOULEMENT HORS-TOUT","Inbouwdiepte","Sügavus","Tila takana","монтажная глубина"]
[{"$nulls":32},"Hanging point if","Kotvící bod, když je","Hanging point if","Aufhängepunkte, wenn","Punkty mocowania, jeżeli","POINT D'ANCRAGE DES SUSPENTES, SI","Ophangpunt, als","Kinnituskoht, kui ","Ripustuspiste jos","точки крепления горизонтальных направляющих, если"]
[{"$nulls":32},"Hanging point","Kotvící bod","Hanging point","Aufhängepunkte","Punkty mocowania","POINT D'ANCRAGE DES SUSPENTES","Ophangpunt","Kinntuskoht","Ripustuspiste","точка крепления"]
[{"$nulls":32},"Free room above lintel","Volný prostor nad překladem","Free room above lintel","Freiraum über Sturz","Wolna przestrzeń nad nadprożem","RETOMBEE DE LINTEAU DISPONIBLE","Vrije ruimte boven latei","Vaba ruum sillusest  laeni","Tila oviaukon päällä","свободное пространство над проемом"]
[{"$nulls":32},"Height of shaft above lintel","Osa hřídele nad překladem","Height of shaft above lintel","Mitte Achse zum Sturz","Oś wału nad nadprożem","POSITIONNEMENT AXE DE l'ARBRE DE LINTEAU","Center as boven latei","Kesktelg","Akseli ovipalkkin päällä","центральная ось вала"]
[]
[]
[{"$nulls":32},"Designed by:","Sestavil:","Designed by:","Aufgestellt:","Wykonał:","DESSINE PAR:","Getekend door:","Joonestatud:","\nSuunnitellut:","спроектировано:"]
[{"$nulls":32},"Checked by","Upravil:","Checked by","Bereinigt:","Skorygował:","MODIFIE PAR:","Gecontroleerd door:","Kontrollitud:","Tarkistanut","проверил:"]
[{"$nulls":32},"Approved by - date:","Schváleno - datum:","Approved by - date:","Bereinigt am:","Skorygowano dnia:","MODIFIE LE (DATE):","Goedgekeurd datum:","Kinnitatud:","\nHyväksytty - päivämäärä:","одобрил-дата:"]
[{"$nulls":32},"File name:","Název souboru:","File name:","Dateiname:","Nazwa pliku:","TITRE:","Bestandsnaam","Faili nimi:","\nTiedoston nimi:","навание файла:"]
[{"$nulls":32},"Date:","Datum:","Date:","Datum:","Data:","DATE:","Datum:","Kuupäev:","Päivämäärä:","дата:"]
[{"$nulls":32},"Scale:","Měřítko","Scale:","Massst.:","Podział.:","ECHELLE:","Schaal:","Mõõtkava:","Mittakaava:","шкала:"]
[{"$nulls":32},{"$f":"VLOOKUP(AH87,AH87:AR176,$AE$1,FALSE)","v":"Sheet:"},"Formát: ","Sheet:","Format:","Format:","FORMAT:","Sheet:","Formaat:","Lista:","лист:"]
[{"$nulls":32},"INSTALLATION DRAWING PRE-ASSEMBLED HIGH LIFT SYSTEM (HL-2T) HL >= 1200","STAVEBNÍ PŘIPRAVENOST VEDENÍ                        S PŘEDMONT. HŘÍDELÍ PRO VYSOKÝ PŘEKLAD (HL-2T) HL>1200","INSTALLATION DRAWING PRE-ASSEMBLED HIGH LIFT SYSTEM (HL-2T) HL >= 1200","EINBAUZEICHNUNG VORMONTIERTER HÖHERGEFÜHRTER BESCHLAG (HL-2T) HL >= 1200","PRZYGOTOWANIE_KONSTRUKCYJNE Zarządzanie z PŘEDMONT. WAŁ DO DUŻEJ TŁUMACZENIA (HL-2T) HL >= 1200","PLAN DE L'INSTALLATION POUR SYSTEME LINTEAU HAUT PRE-ASSEMBLE (HL-2T) HL >= 1200","INBOUWTEKENING VOORGEASSEMBLEERD HOOG PLAFONDSYSTEEM (HL-2T) HL >  1200","Paigaldusjoonis HL-2T tõstele (vedrud konsoolil), HL >= 1200","ASENNUSPIIRUSTUS ESIKOOTTU KORKEANOSTO JÄRJESTELMÄ (HL-2T) HL >= 1200","МОНТАЖНЫЙ ЧЕРТЕЖ ПРЕДСОБРАННАЯ СИСТЕМА С ВЫСОКИМ ПОДЪЕМОМ (HL-2T)  HL>1200"]
[{"$nulls":32},"springs above lintel ","pružiny nad překladem ","springs above lintel "," Federn oberhalb des Sturzes ","sprężyny nad nadprożem ","RESSORTS AVANTS DEPORTES DU LINTEAU","verenpakket boven latei","vedrud ava kohal","jouset ovipalkkin päällä","нижнее расположение вала"]
[{"$nulls":32},"VERTICAL LIFT SYSTEM","VERTIKÁLNÍ SYSTÉM","VERTICAL LIFT SYSTEM","VERTIKALER BESCHLAG (VL-T)","PROWADZENIE PIONOWE (VL-T)","LEVEE VERTICALE (VL)","VERTICAAL PLAFONDSYSTEEM"]
[{"$nulls":32},"Code:","Kód:","Code:","Kode:","Kod:","CODE:","Nr.:","Kood:","Koodi:","код:"]
[{"$nulls":32},"Version:","Verze:","Version:","Version:","Wersja:","VERSION:","Versie:","Versioon:","Versio:","версия:"]
[{"$nulls":32},"NOT REQUIRED","NENÍ POŽADOVÁNO","NOT REQUIRED","NICHT ERFORDELICH","Nie jest wymagane","Pas nécessaire","NIET BENODIGD","Mitte vajalik","EI VAADITTU","НЕ ТРЕБУЕТСЯ"]
[]
[{"$nulls":32},"Please, fill in the fields that are marked in color!","Prosím, vyplňte pole, která jsou označena barevně!","Please, fill in the fields that are marked in color!","Fülen Sie bitte markierte Felder!","Prosimy o wypełnienie pól oznaczonych kolorem!","S'il vous plaît remplissez les champs qui sont marqués en couleur!","Vul a.u.b. de gemarkeerde velden in!","Palun täida värvilised väljad!","\nTäytä kentät, jotka on merkitty värillä!","пожалуйста, заполните поля обозначенные цветом!"]
[]
[{"$nulls":32},"Operated","Ovládání","Operated","Bedienung","Sterowanie","PORTE","Bediening","Avamine","Ohjattu","Тип управления"]
[{"$nulls":32},"manually","ručně","manually","hand","ręcznie wykonany","MANUELLE","hand","käsitsi","manuaalisesti","вручную"]
[{"$nulls":32},"electrical ","elektricky","electrical ","elektrisch","elektrycznie","MOTORISEE","elektrisch","elektriliselt","sähköisesti","электрическое управление или с помощью цепи"]
[{"$nulls":32},{"$f":"VLOOKUP(AH100,AH100:AR195,$AE$1,FALSE)","v":"hauling chain operated - left"},"řetězovým převodem vlevo","hauling chain operated - left","Haspelkette - links","Łańcuch napędu -  lewy","TREUIL A CHAINE - gauche","handketting - links","taliga - vasakule","ketjukäyttöinen - vasen","цепной привод -  левый\n","hauling chain operated - left","řetězovým převodem vlevo","hauling chain operated - left","Haspelkette - links","Łańcuch napędu -  lewy","TREUIL A CHAINE - gauche","handketting - links","taliga - vasakule","ketjukäyttöinen - vasen","цепной привод -  левый\n"]
[{"$nulls":32},{"$f":"VLOOKUP(AH101,AH101:AR196,$AE$1,FALSE)","v":"hauling chain operated - right"},"řetězovým převodem vpravo","hauling chain operated - right","Haspelkette - rechts","Łańcuch napędu -  prawy","TREUIL A CHAINE - droite","handketting - rechts","taliga - paremale","ketjukäyttöinen - oikea","цепной привод -  правая",{"$f":"VLOOKUP(AR101,AR101:BB196,$AE$1,FALSE)","v":"hauling chain operated - right"},"řetězovým převodem vpravo","hauling chain operated - right","Haspelkette - rechts","Łańcuch napędu -  prawy","TREUIL A CHAINE - droite","handketting - rechts","taliga - paremale","ketjukäyttöinen - oikea","цепной привод -  правая"]
[{"$nulls":32},{"$f":"VLOOKUP(AH102,AH102:AR194,$AE$1,FALSE)","v":"Position of motor"},"Umístění motoru","Position of motor","Antriebesposition","Pozycja sylnika","LA POSITION MOTEUR","Positie van de motor","mootori asukohta","Mootorin asema","расположение мотора"]
[{"$nulls":32},{"$f":"VLOOKUP(AH103,AH103:AR198,$AE$1,FALSE)","v":"electric motor on the left"},"Elektricky - motor vlevo","electric motor on the left","Antrieb - links","silnik elektryczny po lewej stronie","moteur électrique à gauche","elektromotor links","elektrimootor vasakul","sähkömoottori oikealla","электродвигатель слева"]
[{"$nulls":32},{"$f":"VLOOKUP(AH104,AH104:AR199,$AE$1,FALSE)","v":"electric motor on the right"},"Elektricky - motor vpravo","electric motor on the right","Antrieb - rechts","silnik elektryczny po prawej stronie","moteur électrique à droite","elektromotor rechts","elektrimootor paremal","sähkömoottori vasemmalla","электродвигатель справа"]
[]
[{"$nulls":32},"Welded steel construction of the profile according to the dimensions 100x50x4","Ocelovou konstrukci svařit z profilu 100x50x4 dle uvedených rozměrů","Welded steel construction of the profile according to the dimensions 100x50x4","Geschweißte Stahlkonstruktion des Profils nach dem Maße 100x50x4","Stalowa konstrukcja spawana z profilu według wymiarów 100x50x4","Construction en acier soudé du profil en fonction de la dimension 100x50x4","Staalconstructie van het profiel 100x50x4 volgens de afmetingen lassen","Keevitatud teraskonstrukstioon 100x50x4 profiilidest","Profiilin hitsattu teräsrakenne mittojen mukaan 100x50x4","Стальная конструкция из профильной трубы 100х50х4 мм"]
[{"$nulls":32},{"$f":"VLOOKUP(AH107,AH107:AR183,$AE$1,FALSE)","v":"Type of panel"},"Typ panelu","Type of panel","Paneel-Typ","Rodzaj panelu","Type de panneau","Panel type","Paneelitüüp","lamellin tyypi","Тип панели"]
[{"$nulls":32},{"$f":"VLOOKUP(AH108,AH108:AR199,$AE$1,FALSE)","v":"40 mm"},"40mm","40 mm","40 mm"," 40 mm","40 mm ","40 mm","40 mm","40mm","40мм "]
[{"$nulls":32},"80 mm","80mm","80 mm","80 mm"," 80 mm","80 mm ","80 mm","80 mm","80mm","80мм "]
[{"$nulls":32},{"$f":"VLOOKUP(AH110,AH110:AR205,$AE$1,FALSE)","v":"Motor side "},"Strana motoru","Motor side ","Antriebseite ","Strona silnika ","Côté moteur ","Motorzijde ","Mootori pool ","Moottorin puoli ","Сторона двигателя "]
[{"$nulls":32},"Other side","Druhá strana","Other side","Andere Seite ","Druga strona ","Autre côté ","Andere kant ","Teine pool ","Muu puoli ","Другая сторона "]
[{"$nulls":32},{"$f":"VLOOKUP(AH112,AH112:AR207,$AE$1,FALSE)","v":"Offer/Order:"},"Nabídka/Objednávka:","Offer/Order:","Angebot/Bestellung:","Oferta/Zamówienie:","Offre/Commande:","Offerte/Order:","Pakkumine/tellimus:","Tarjous/Tilaus:","Предложение/заказ:"]
[{"$nulls":32},{"$f":"VLOOKUP(AH113,AH113:AR208,$AE$1,FALSE)","v":"Position:"},"Pozice:","Position:","Position:","Pozycje:","Positions:","Positie:","Ametikohad:","Työpaikat:","Позиции:"]

{"sheet":"SW-R","index":1,"n_rows":48,"n_cols":5,"rows_kept":48,"merged":[[0,8,11,8],[5,0,9,0],[15,0,20,0],[39,2,40,8],[41,2,42,3],[41,4,42,6],[41,7,48,8],[43,2,44,3],[43,4,44,6],[45,2,46,3],[45,4,46,6],[47,2,48,3],[47,4,48,6]]}
{"$rows_empty":39}
[null,null,{"$f":"general!V2","v":"HIGH LIFT SYSTEM (HL-2T)"}]
[]
[null,null,{"$f":"general!AG97","v":"Operated"},null,{"$f":"general!AG104","v":"electric motor on the right"}]
[]
[null,null,{"$f":"general!AG81","v":"Designed by:"}]
[]
[null,null,{"$f":"general!AG82","v":"Checked by"}]
[]
[null,null,{"$f":"general!AG85","v":"Date:"}]

{"sheet":"SW-L","index":2,"n_rows":48,"n_cols":5,"rows_kept":48,"merged":[[0,8,11,8],[5,0,9,0],[15,0,20,0],[39,2,40,8],[41,2,42,3],[41,4,42,6],[41,7,48,8],[43,2,44,3],[43,4,44,6],[45,2,46,3],[45,4,46,6],[47,2,48,3],[47,4,48,6]]}
{"$rows_empty":39}
[null,null,{"$f":"general!V2","v":"HIGH LIFT SYSTEM (HL-2T)"}]
[]
[null,null,{"$f":"general!AG97","v":"Operated"},null,{"$f":"general!AG103","v":"electric motor on the left"}]
[]
[null,null,{"$f":"general!AG81","v":"Designed by:"}]
[]
[null,null,{"$f":"general!AG82","v":"Checked by"}]
[]
[null,null,{"$f":"general!AG85","v":"Date:"}]

{"sheet":"Manually_operated","index":3,"n_rows":48,"n_cols":5,"rows_kept":48,"merged":[[0,8,11,8],[5,0,9,0],[15,0,20,0],[39,2,40,8],[41,2,42,3],[41,4,42,6],[41,7,48,8],[43,2,44,3],[43,4,44,6],[45,2,46,3],[45,4,46,6],[47,2,48,3],[47,4,48,6]]}
{"$rows_empty":39}
[null,null,{"$f":"general!V2","v":"HIGH LIFT SYSTEM (HL-2T)"}]
[]
[null,null,{"$f":"general!AG97","v":"Operated"},null,{"$f":"general!AG98","v":"manually"}]
[]
[null,null,{"$f":"general!AG81","v":"Designed by:"}]
[]
[null,null,{"$f":"general!AG82","v":"Checked by"}]
[]
[null,null,{"$f":"general!AG85","v":"Date:"}]

{"sheet":"Obrázky","index":4,"n_rows":128,"n_cols":28,"rows_kept":128,"hidden":true,"merged":[[5,24,7,30],[19,3,43,3],[19,4,43,10],[46,3,70,3],[46,4,70,10],[73,3,97,3],[73,4,97,10],[100,3,124,3],[100,4,124,10],[127,3,151,3],[127,4,151,10]]}
[]
[]
[]
[]
[]
[{"$nulls":24},"Pomocné výpočty"]
[]
[]
[]
[]
[{"$nulls":27},{"$f":"IF(general!K9=general!AG98,250+250,IF(OR(general!K9=general!AG100,general!K9=general!AG101),330+250,430+250))","v":680}]
[{"$nulls":24},"W=",4500]
[{"$nulls":24},"L+ W + R = ",{"$f":"IF(OR(general!K3=\"\",general!K7=\"\"),\"L+W+R \",\"L+W+R = \" & general!K3 +AB11)","v":"L+W+R "}]
[]
[]
[{"$nulls":24},"Vlevo nahoře",{"$f":"IF(OR(general!K9=general!AG104,general!K9=general!AG101),\"\",IF(general!K9=general!AG103,\"L = \" & 430,IF(general!K9=general!AG100,\"L = \" & 330,\"\")))","v":""},{"$f":"IF(OR(general!L9=general!AG104,general!L9=general!AG101),\"\",IF(general!L9=general!AG103,\"L = \" & 430,IF(general!L9=general!AG100,\"L = \" & 360,\"\")))","v":""}]
[{"$nulls":24},"Vpravo nahoře",{"$f":"IF(OR(general!K9=general!AG100,general!K9=general!AG103),\"\",IF(general!K9=general!AG104,\"R = \" & 430,IF(general!K9=general!AG101,\"R = \" & 330,\"\")))","v":""},{"$f":"IF(OR(general!K9=general!AG100,general!K9=general!AG103),\"\",IF(general!K9=general!AG104,\"R = \" & 430,IF(general!K9=general!AG101,\"R = \" & 360,\"\")))","v":""}]
[{"$nulls":24},"D",{"$f":"IF(general!K9=general!AG98,general!L56,general!L59)","v":""}]
[{"$nulls":25},250]
[{"$nulls":3},{"$f":"general!AG104","v":"electric motor on the right"},{"$nulls":21},{"$f":"IF(OR(general!K11=general!AG108,general!$K$11=\"\"),250,290)","v":250}]
[{"$nulls":25},{"$f":"IF(general!K5=\"\",\"\",IF(general!K5<5500,160,200))","v":""}]
[{"$nulls":24},"Plocha pro výpočet pomocné konzole Z",{"$f":"(general!K3*general!K5)/1000","v":0}]
{"$rows_empty":24}
[{"$nulls":3},{"$f":"general!AG103","v":"electric motor on the left"}]
{"$rows_empty":26}
[{"$nulls":3},{"$f":"general!AG100","v":"hauling chain operated - left"}]
{"$rows_empty":26}
[{"$nulls":3},{"$f":"general!AG101","v":"hauling chain operated - right"}]
{"$rows_empty":26}
[{"$nulls":3},{"$f":"general!AG98","v":"manually"}]